bitfinex-derivatives/quotes_SOLF0:USTF0_20241010
["timestamp","ask_amount","ask_price","bid_price","bid_amount"]
[1728587380772,0.12502,137.09,137.07,5.8402]
[1728587382384,0.12502,137.09,137.07,2.1881]
[1728587382590,0.12502,137.09,137.08,3.652]
[1728587383191,0.12502,137.09,137.08,5.8401]
[1728587384779,0.12502,137.09,137.08,17.0701]
[1728587398192,6.54,137.13,137.08,13.4181]
[1728587398392,6.54,137.13,137.12,14.8809]
[1728587398592,6.64502,137.15,137.12,11.23]
[1728587398793,6.64502,137.15,137.14,14.8804]
[1728587399396,6.64502,137.15,137.14,11.23]
[1728587400398,6.64502,137.15,137.12,2.1881]
[1728587400702,3.6504,137.14,137.12,2.1881]
[1728587400997,11.23,137.14,137.08,1.3261]
[1728587401191,3.6507,137.13,137.1,3.6513]
[1728587401388,6.64502,137.15,137.11,11.23]
[1728587401588,6.64502,137.15,137.13,3.6507]
[1728587401803,6.64502,137.15,137.14,11.23]
[1728587402298,10.29522,137.15,137.13,14.8807]
[1728587402800,6.64502,137.15,137.14,3.6504]
[1728587403798,0.12502,137.15,137.14,14.8804]
[1728587404194,0.12502,137.15,137.14,17.0685]
[1728587406895,0.12502,137.21,137.14,13.4181]
[1728587407100,0.12502,137.21,137.2,14.8788]
[1728587408301,0.12502,137.21,137.2,3.6488]
[1728587408505,0.12502,137.21,137.2,14.8788]
[1728587409210,0.12502,137.21,137.2,17.0669]
[1728587409901,7.02,137.24,137.2,13.4181]
[1728587410119,0.5,137.24,137.23,14.878]
[1728587410495,0.5,137.24,137.23,17.0661]
[1728587412306,0.5,137.24,137.23,2.1881]
[1728587412509,11.73,137.24,137.19,11.23]
[1728587412810,6.52,137.23,137.19,11.23]
[1728587413106,10.1682,137.23,137.19,13.41603]
[1728587413613,6.52,137.23,137.2,3.6487]
[1728587413811,6.52,137.23,137.19,2.18603]
[1728587414010,6.52,137.23,137.19,13.41603]
[1728587414208,10.1682,137.23,137.19,17.06503]
[1728587414404,6.52,137.23,137.19,5.83503]
[1728587414918,6.52,137.23,137.19,2.18603]
[1728587415103,3.6483,137.22,137.19,2.18603]
[1728587415303,6.52,137.23,137.19,2.18603]
[1728587415504,3.6485,137.22,137.18,5.83533]
[1728587417014,3.6489,137.2,137.18,2.18603]
[1728587417213,7.8193,137.23,137.18,2.18603]
[1728587417512,17.52,137.22,137.18,2.18603]
[1728587417817,3.6491,137.19,137.18,2.18603]
[1728587418014,10.1691,137.19,137.18,2.18603]
[1728587421416,3.6499,137.16,137.15,0.12502]
[1728587421614,6.52,137.19,137.15,0.12502]
[1728587421810,6.52,137.19,137.15,3.77502]
[1728587422316,3.6495,137.18,137.15,2.31216]
[1728587422622,6.52,137.19,137.15,2.31216]
[1728587423011,10.1691,137.19,137.16,3.6498]
[1728587423419,10.1691,137.19,137.15,2.31216]
[1728587423930,10.1691,137.19,137.16,3.6498]
[1728587424113,10.1691,137.19,137.15,2.31216]
[1728587424114,1.46276,137.16,137.15,0.12502]
[1728587424510,1.46276,137.16,137.15,2.31216]
[1728587424719,1.46276,137.16,137.15,0.12502]
[1728587431024,3.6496,137.17,137.15,3.77512]
[1728587431226,3.6496,137.17,137.15,0.12502]
[1728587431525,3.6496,137.17,137.15,2.31216]
[1728587432131,3.6499,137.16,137.15,0.12502]
[1728587432930,3.6497,137.17,137.15,0.12502]
[1728587433317,1.4199,137.18,137.15,0.12502]
[1728587433622,3.6499,137.16,137.15,0.12502]
[1728587434524,10.1499,137.16,137.15,0.12502]
[1728587436827,6.5,137.16,137.15,0.12502]
[1728587437034,6.5,137.16,137.15,14.99522]
[1728587437322,3.73534159,137.22,137.15,14.99522]
[1728587437323,11.22,137.21,137.15,13.53216]
[1728587437521,10.149,137.2,137.16,11.22]
[1728587437725,3.72858649,137.19,137.17,3.6495]
[1728587438421,7.37778649,137.19,137.16,2.18714]
[1728587438626,7.37778649,137.19,137.16,5.83694]
[1728587439230,3.6492,137.19,137.17,3.6496]
[1728587439830,21.29081283,137.2,137.16,2.18714]
[1728587440027,11.22,137.18,137.16,2.18714]
[1728587440527,3.6497,137.17,137.16,2.18714]
[1728587441117,14.8697,137.17,137.16,2.18714]
[1728587441321,3.6499,137.16,137.15,0.12502]
[1728587441536,10.1499,137.16,137.15,0.12502]
[1728587443229,10.1499,137.16,137.15,0.00302]
[1728587443431,3.6504,137.14,137.13,2.18714]
[1728587443633,24.03,137.16,137.13,2.18714]
[1728587443825,3.6504,137.14,137.13,2.18714]
[1728587445528,24.03,137.16,137.12,2.18714]
[1728587445724,3.6508,137.13,137.12,2.18714]
[1728587448034,3.6505,137.14,137.12,2.18714]
[1728587452136,17.53,137.15,137.12,2.18714]
[1728587452336,3.6512,137.12,137.11,2.18714]
[1728587452538,6.5,137.12,137.11,2.18714]
[1728587453128,10.1509,137.12,137.11,2.18714]
[1728587460944,6.5,137.12,137.11,2.18714]
[1728587461635,10.1509,137.12,137.11,2.18714]
[1728587463848,6.5,137.12,137.11,2.18714]
[1728587464247,6.5,137.17,137.11,13.41714]
[1728587464454,6.5,137.17,137.14,11.23]
[1728587464641,10.1497,137.17,137.14,11.23]
[1728587464842,10.1497,137.17,137.14,5.83744]
[1728587465039,6.5,137.17,137.14,5.83744]
[1728587465960,3.6499,137.16,137.14,5.83744]
[1728587466547,10.1498,137.17,137.15,3.65]
[1728587466747,6.5,137.17,137.15,3.65]
[1728587466951,6.5,137.17,137.15,11.23]
[1728587467360,6.5,137.17,137.15,5.83724]
[1728587467561,6.5,137.17,137.15,2.18714]
[1728587467949,6.5,137.17,137.16,11.23]
[1728587468354,6.5,137.17,137.16,13.41714]
[1728587469169,6.5,137.17,137.16,17.06704]
[1728587469664,6.5,137.17,137.16,2.18714]
[1728587470262,6.5,137.17,137.16,5.83704]
[1728587471060,6.5,137.17,137.16,2.18714]
[1728587472258,6.5,137.17,137.16,5.83704]
[1728587472866,6.5,137.17,137.16,2.18714]
[1728587473165,6.5,137.17,137.16,13.41714]
[1728587474473,6.5,137.17,137.16,17.06704]
[1728587475373,6.5,137.17,137.16,5.83704]
[1728587477167,6.5,137.17,137.16,2.18714]
[1728587480372,21.3796,137.17,137.16,2.18714]
[1728587480674,17.73,137.17,137.14,2.18714]
[1728587480977,11.23,137.16,137.14,2.18714]
[1728587481362,11.23,137.15,137.11,2.18714]
[1728587481575,11.23,137.12,137.11,2.18714]
[1728587481772,17.73,137.12,137.11,2.18714]
[1728587481973,21.3811,137.12,137.11,2.18714]
[1728587484075,17.73,137.12,137.11,2.18714]
[1728587484778,21.3809,137.12,137.11,2.18714]
[1728587490776,10.1509,137.12,137.11,2.18714]
[1728587490981,21.3809,137.12,137.11,2.18714]
[1728587493487,6.5,137.12,137.11,5.83834]
[1728587493683,78.84,137.17,137.11,13.41714]
[1728587493887,11.23,137.15,137.11,13.41714]
[1728587494094,14.8803,137.15,137.11,13.41714]
[1728587494293,11.23,137.14,137.11,2.18714]
[1728587494793,11.23,137.13,137.11,2.18714]
[1728587494985,6.48,137.12,137.11,2.18714]
[1728587497593,6.48,137.12,137.11,5.83834]
[1728587504197,10.1309,137.12,137.11,2.18714]
[1728587504703,6.48,137.12,137.11,2.18714]
[1728587505501,6.48,137.12,137.11,5.83834]
[1728587506399,21.3609,137.12,137.11,2.18714]
[1728587508096,6.48,137.12,137.11,2.18714]
[1728587508999,6.48,137.12,137.11,5.83834]
[1728587510397,6.48,137.12,137.11,2.18714]
[1728587511696,6.48,137.12,137.11,5.83834]
[1728587512491,6.48,137.12,137.11,2.18714]
[1728587514903,17.71,137.12,137.1,2.18714]
[1728587515213,11.23,137.11,137.09,2.31216]
[1728587515399,14.8815,137.1,137.09,2.31216]
[1728587520111,11.23,137.1,137.09,2.31216]
[1728587520513,3.67644671,137.13,137.09,2.31216]
[1728587520708,2.8087,137.1,137.09,2.31216]
[1728587521411,2.8087,137.1,137.09,5.96386]
[1728587522814,6.46,137.11,137.1,3.6514]
[1728587523614,6.46,137.11,137.1,5.83854]
[1728587524711,6.46,137.12,137.11,3.6511]
[1728587524903,6.46,137.12,137.11,5.83824]
[1728587528919,6.46,137.12,137.11,2.18714]
[1728587535422,78.84,137.17,137.11,2.18714]
[1728587535615,11.23,137.15,137.13,3.6507]
[1728587536319,6.46,137.14,137.12,13.41714]
[1728587536616,6.46,137.14,137.13,3.6507]
[1728587536821,6.46,137.14,137.13,5.83784]
[1728587537021,6.46,137.14,137.13,17.06784]
[1728587537620,6.46,137.14,137.13,5.83784]
[1728587538217,17.69,137.14,137.13,2.18714]
[1728587538519,17.69,137.14,137.12,2.18714]
[1728587538724,14.8808,137.13,137.12,2.18714]
[1728587539620,18.59386927,137.13,137.12,2.18714]
[1728587539931,14.94306927,137.13,137.09,1.54782]
[1728587540226,11.23,137.11,137.09,3.73496]
[1728587540424,6.46,137.1,137.09,2.31216]
[1728587544639,6.46,137.1,137.09,5.96386]
[1728587546527,3.74281397,137.13,137.09,13.54216]
[1728587546728,6.46,137.12,137.11,11.23]
[1728587546936,6.46,137.13,137.11,13.41714]
[1728587547118,6.46,137.13,137.12,3.6509]
[1728587547627,6.46,137.13,137.12,5.83804]
[1728587549033,6.46,137.13,137.12,17.06804]
[1728587549221,93.7198,137.17,137.14,3.6502]
[1728587549425,6.46,137.16,137.14,3.6502]
[1728587549929,6.46,137.16,137.14,5.83734]
[1728587550134,2.8099,137.15,137.14,2.18714]
[1728587551125,82.4898,137.17,137.14,5.83744]
[1728587551427,6.44,137.16,137.14,5.83744]
[1728587551734,6.44,137.16,137.14,2.18714]
[1728587552632,4.2761,137.16,137.15,14.8802]
[1728587552835,4.2761,137.16,137.15,16.2435]
[1728587553033,4.2761,137.16,137.15,18.43064]
[1728587553229,14.79111208,137.2,137.16,3.6497]
[1728587553440,6.44,137.18,137.15,14.78044]
[1728587553932,17.67,137.18,137.15,3.55044]
[1728587554327,21.3195,137.18,137.15,3.55044]
[1728587554633,21.3195,137.18,137.15,7.20044]
[1728587556535,3.6498,137.17,137.15,2.18714]
[1728587556728,17.67,137.18,137.15,2.18714]
[1728587557139,3.6496,137.17,137.15,2.18714]
[1728587558637,3.6496,137.17,137.15,5.83724]
[1728587558830,6.44,137.18,137.15,13.41714]
[1728587559339,6.44,137.18,137.16,3.6497]
[1728587559737,10.0895,137.18,137.16,2.18714]
[1728587571150,10.0895,137.18,137.16,5.83694]
[1728587575254,21.3195,137.18,137.16,2.18714]
[1728587575447,3.6496,137.17,137.16,2.18714]
[1728587579654,3.6499,137.16,137.14,5.83744]
[1728587584757,11.23,137.17,137.14,2.18714]
[1728587584963,11.23,137.15,137.12,2.18714]
[1728587585163,6.42,137.14,137.12,2.18714]
[1728587585459,3.6508,137.13,137.12,2.18714]
[1728587589968,6.42,137.14,137.12,2.18714]
[1728587590158,6.42,137.14,137.13,14.8807]
[1728587590565,6.42,137.14,137.13,17.06784]
[1728587592258,6.42,137.14,137.13,5.83784]
[1728587592563,6.42,137.14,137.13,2.18714]
[1728587595573,6.42,137.14,137.13,13.41714]
[1728587595768,6.42,137.14,137.13,17.06784]
[1728587596466,0.12502,137.21,137.13,13.41714]
[1728587596672,6.42,137.18,137.16,11.23]
[1728587597071,6.42,137.18,137.16,13.41714]
[1728587597372,6.42,137.18,137.16,2.18714]
[1728587597575,10.0694,137.18,137.16,2.18714]
[1728587599375,6.42,137.18,137.16,5.83674]
[1728587600874,6.42,137.18,137.16,2.18714]
[1728587601176,3.6496,137.17,137.16,2.18714]
[1728587602061,17.65,137.18,137.16,2.18714]
[1728587602263,21.2995,137.18,137.16,2.18714]
[1728587606778,10.0695,137.18,137.16,2.18714]
[1728587606981,10.0695,137.18,137.16,5.83704]
[1728587607983,6.42,137.17,137.16,5.83704]
[1728587611092,3.56111208,137.2,137.16,13.41714]
[1728587611277,3.56111208,137.2,137.18,3.6492]
[1728587611278,6.42,137.19,137.18,3.6492]
[1728587611789,6.42,137.19,137.18,5.83634]
[1728587612489,0.12502,137.21,137.18,13.41714]
[1728587612688,6.4,137.2,137.18,13.41714]
[1728587613388,6.4,137.2,137.19,3.6491]
[1728587613782,0.12502,137.21,137.19,3.6491]
[1728587613983,6.52502,137.21,137.19,3.6491]
[1728587614177,6.52502,137.21,137.19,5.83624]
[1728587614773,0.12502,137.21,137.2,3.6488]
[1728587614978,6.9,137.24,137.2,11.23]
[1728587615183,6.9,137.24,137.22,11.23]
[1728587615495,6.9,137.24,137.22,13.41714]
[1728587615989,6.9,137.24,137.23,3.648]
[1728587616188,6.9,137.24,137.23,5.83514]
[1728587618384,0.5,137.24,137.23,5.83514]
[1728587619984,0.5,137.24,137.23,17.06514]
[1728587620184,0.62502,137.27,137.26,3.6472]
[1728587620375,0.62502,137.27,137.23,2.18714]
[1728587620376,0.62502,137.27,137.23,13.41714]
[1728587620577,4.27212,137.27,137.24,3.6476]
[1728587620786,4.27212,137.27,137.24,5.83474]
[1728587621692,4.27212,137.27,137.24,17.06474]
[1728587623595,3.6472,137.26,137.24,2.18714]
[1728587625587,14.8775,137.25,137.24,2.18714]
[1728587625896,11.23,137.25,137.23,2.18714]
[1728587626194,6.4,137.24,137.23,2.18714]
[1728587626387,10.0478,137.24,137.23,2.18714]
[1728587626990,6.4,137.24,137.23,2.18714]
[1728587627199,0.62502,137.27,137.23,13.41714]
[1728587627384,0.62502,137.27,137.26,11.23]
[1728587627588,0.62502,137.27,137.26,17.06434]
[1728587635399,0.62502,137.27,137.26,5.83434]
[1728587635600,0.62502,137.27,137.26,2.18714]
[1728587635601,4.27202,137.27,137.26,2.18714]
[1728587636506,0.62502,137.27,137.26,2.18714]
[1728587639604,0.62502,137.27,137.26,17.06434]
[1728587642119,6.9,137.3,137.29,3.6464]
[1728587642411,6.9,137.3,137.29,14.8764]
[1728587642713,0.5,137.3,137.29,17.06354]
[1728587644209,0.5,137.3,137.29,2.18714]
[1728587649114,0.5,137.3,137.29,13.41714]
[1728587649315,0.5,137.3,137.29,17.06354]
[1728587651306,0.5,137.3,137.29,2.18714]
[1728587652008,4.1462,137.3,137.29,2.18714]
[1728587652810,4.1462,137.3,137.27,1.3271]
[1728587652811,11.73,137.3,137.27,2.18714]
[1728587653017,6.38,137.29,137.27,2.18714]
[1728587653519,3.6467,137.28,137.27,2.18714]
[1728587655520,3.6467,137.28,137.26,2.18714]
[1728587655821,6.38,137.29,137.24,17.06474]
[1728587657316,3.6472,137.27,137.24,17.06474]
[1728587657830,11.23,137.27,137.24,2.18714]
[1728587658013,14.96563326,137.26,137.24,2.18714]
[1728587658320,6.38,137.25,137.24,2.18714]
[1728587658523,10.0275,137.25,137.24,2.18714]
[1728587660021,6.38,137.25,137.24,2.18714]
[1728587660719,10.0275,137.25,137.24,2.18714]
[1728587663124,21.2575,137.25,137.24,2.18714]
[1728587664832,10.0275,137.25,137.24,2.18714]
[1728587667922,21.2575,137.25,137.24,2.18714]
[1728587668122,10.0275,137.25,137.24,2.18714]
[1728587675328,21.2575,137.25,137.24,2.18714]
[1728587682431,3.6478,137.24,137.23,2.18714]
[1728587682732,11.23,137.24,137.23,2.18714]
[1728587683031,11.23,137.24,137.22,2.18714]
[1728587683238,11.23,137.23,137.22,2.18714]
[1728587683734,14.878,137.23,137.22,2.18714]
[1728587684337,3.648,137.23,137.22,2.18714]
[1728587689741,11.23,137.24,137.22,2.18714]
[1728587689932,11.23,137.24,137.22,17.06544]
[1728587689933,3.6479,137.24,137.22,17.06544]
[1728587692243,3.6479,137.24,137.22,5.83544]
[1728587696345,3.60139704,137.27,137.23,11.23]
[1728587696650,3.60139704,137.27,137.22,2.18714]
[1728587696651,6.36,137.26,137.24,11.23]
[1728587696948,6.36,137.27,137.25,3.6472]
[1728587697650,6.36,137.27,137.25,5.83434]
[1728587697847,10.007,137.27,137.25,5.83434]
[1728587699245,6.36,137.27,137.25,5.83434]
[1728587699440,6.36,137.27,137.26,3.6472]
[1728587699640,6.36,137.27,137.26,5.83434]
[1728587700356,6.36,137.28,137.26,2.18714]
[1728587700544,17.59,137.28,137.26,2.18714]
[1728587700737,11.23,137.27,137.26,2.18714]
[1728587700938,3.6475,137.25,137.24,3.55044]
[1728587703049,14.8775,137.25,137.24,2.18714]
[1728587703438,1.46106,137.23,137.2,3.6487]
[1728587703637,19.03106,137.23,137.21,2.31105]
[1728587704845,17.57,137.23,137.21,2.31105]
[1728587705040,3.6483,137.22,137.21,2.31105]
[1728587706156,14.8783,137.22,137.21,2.31105]
[1728587706354,14.8783,137.22,137.21,0.12502]
[1728587708155,14.8783,137.22,137.21,2.31105]
[1728587709953,14.8783,137.22,137.21,0.12502]
[1728587711153,3.6495,137.18,137.14,12.5579]
[1728587711362,21.2195,137.18,137.14,12.5579]
[1728587711560,9.9895,137.18,137.15,2.31176]
[1728587712062,9.9895,137.18,137.15,5.96176]
[1728587712554,6.34,137.18,137.16,3.6499]
[1728587712757,6.34,137.18,137.16,5.83664]
[1728587712947,9.9894,137.18,137.16,2.18674]
[1728587713550,17.57,137.18,137.16,2.18674]
[1728587713749,3.6496,137.17,137.16,2.18674]
[1728587714564,14.8796,137.17,137.16,2.18674]
[1728587714856,3.6499,137.16,137.15,2.31176]
[1728587715057,14.8799,137.16,137.15,2.31176]
[1728587715364,3.6499,137.16,137.15,0.12502]
[1728587716849,14.8799,137.16,137.15,0.12502]
[1728587717251,3.6504,137.14,137.06,1.4235]
[1728587717454,11.23,137.11,137.09,2.31176]
[1728587717659,11.23,137.12,137.09,17.19346]
[1728587717964,9.90528261,137.13,137.1,11.23]
[1728587718362,3.6507,137.12,137.1,13.41674]
[1728587719262,6.34,137.13,137.1,13.41674]
[1728587719463,6.34,137.13,137.11,11.23]
[1728587719967,6.34,137.13,137.11,14.8807]
[1728587720165,6.34,137.13,137.11,17.06744]
[1728587720465,3.6501,137.14,137.11,17.06744]
[1728587720666,9.9904,137.13,137.11,17.06744]
[1728587722171,5.06673691,137.2,137.12,11.23]
[1728587722369,6.34,137.19,137.15,11.23]
[1728587722669,3.6492,137.18,137.15,14.8797]
[1728587722870,3.6492,137.18,137.15,13.41674]
[1728587724367,3.6492,137.18,137.16,3.6495]
[1728587724567,3.6492,137.18,137.16,5.83624]
[1728587727176,11.23,137.18,137.16,2.18674]
[1728587727377,11.23,137.17,137.15,2.18674]
[1728587727876,11.23,137.18,137.15,2.18674]
[1728587728464,3.6497,137.16,137.15,2.18674]
[1728587730469,6.34,137.19,137.12,12.5917]
[1728587730470,1.46336,137.14,137.12,12.5917]
[1728587730772,11.23,137.14,137.12,2.1873]
[1728587730968,11.23,137.13,137.12,2.1873]
[1728587731167,11.23,137.13,137.09,3.77632]
[1728587731366,11.23,137.12,137.09,5.96362]
[1728587731969,3.651,137.11,137.09,2.31232]
[1728587732866,3.6511,137.1,137.09,2.31232]
[1728587739680,3.6511,137.1,137.09,0.12502]
[1728587742982,3.6511,137.1,137.09,2.31232]
[1728587744985,6.32,137.1,137.09,2.31232]
[1728587745380,6.32,137.1,137.09,5.96372]
[1728587749577,6.32,137.12,137.09,2.31232]
[1728587749781,6.32,137.13,137.11,3.6507]
[1728587750194,9.9702,137.14,137.11,3.6507]
[1728587750396,9.9702,137.14,137.11,5.838]
[1728587753393,6.32,137.14,137.11,5.838]
[1728587753598,3.6504,137.13,137.11,5.838]
[1728587754491,14.8804,137.13,137.11,5.838]
[1728587754995,14.8804,137.13,137.11,2.1873]
[1728587756498,21.2004,137.13,137.11,2.1873]
[1728587760102,6.32,137.13,137.12,3.6506]
[1728587760307,6.32,137.13,137.11,2.1873]
[1728587760804,6.32,137.13,137.11,5.8379]
[1728587761499,6.32,137.13,137.11,2.1873]
[1728587761698,6.32,137.13,137.12,3.6506]
[1728587762320,6.32,137.17,137.12,13.4173]
[1728587762507,6.32,137.17,137.13,12.5374]
[1728587763007,6.32,137.17,137.15,3.6496]
[1728587763605,6.32,137.17,137.15,5.8369]
[1728587764911,6.32,137.17,137.15,13.4173]
[1728587765113,6.32,137.17,137.16,3.6495]
[1728587765600,6.32,137.17,137.16,5.8368]
[1728587765999,14.9036462,137.2,137.16,5.8368]
[1728587766000,3.6486,137.2,137.17,3.6491]
[1728587766301,6.3,137.19,137.17,2.1873]
[1728587766700,6.3,137.19,137.17,5.8364]
[1728587767101,6.3,137.19,137.18,3.649]
[1728587767809,0.12502,137.21,137.18,11.23]
[1728587768015,0.12502,137.21,137.18,14.8075]
[1728587768397,0.12502,137.21,137.19,3.6485]
[1728587769308,0.12502,137.21,137.19,5.8358]
[1728587770510,0.12502,137.21,137.2,11.23]
[1728587770718,0.12502,137.21,137.2,14.8785]
[1728587770907,0.12502,137.21,137.2,18.4037]
[1728587771711,6.3,137.23,137.22,3.6479]
[1728587772004,9.9472,137.25,137.22,3.6479]
[1728587772213,9.9472,137.25,137.22,5.8352]
[1728587773806,6.3,137.25,137.24,3.6474]
[1728587774117,0.12502,137.27,137.24,11.23]
[1728587774410,6.8,137.3,137.26,11.23]
[1728587774716,6.8,137.3,137.28,11.23]
[1728587774906,6.8,137.3,137.29,3.6461]
[1728587775101,6.8,137.3,137.29,5.8334]
[1728587775303,0.5,137.3,137.29,17.0634]
[1728587775508,6.92502,137.33,137.31,3.6453]
[1728587775817,6.92502,137.33,137.31,14.8753]
[1728587776115,10.57002,137.33,137.3,3.6457]
[1728587776307,10.57002,137.33,137.3,2.1873]
[1728587776701,4.27002,137.33,137.3,2.1873]
[1728587777610,0.62502,137.33,137.3,5.833]
[1728587778515,0.62502,137.33,137.31,3.6454]
[1728587778714,0.62502,137.33,137.31,5.8327]
[1728587782218,0.62502,137.33,137.31,2.1873]
[1728587782923,3.6453,137.32,137.31,2.1873]
[1728587787236,18.13502,137.33,137.25,1.3078]
[1728587787439,17.51,137.31,137.25,1.3078]
[1728587787739,6.3,137.3,137.25,3.49263]
[1728587788532,6.3,137.3,137.26,17.51]
[1728587788742,6.3,137.3,137.29,3.6461]
[1728587788942,3.6453,137.32,137.29,3.6461]
[1728587789440,3.6453,137.32,137.29,5.83093]
[1728587790630,10.57012,137.33,137.3,3.6458]
[1728587791142,10.57012,137.33,137.3,5.83063]
[1728587793447,3.6453,137.32,137.3,2.18483]
[1728587795640,10.57012,137.33,137.3,5.83043]
[1728587796433,10.57012,137.33,137.3,17.04043]
[1728587798938,6.92502,137.33,137.31,11.21]
[1728587799145,6.92502,137.33,137.31,14.8553]
[1728587799340,6.92502,137.33,137.31,17.04013]
[1728587800247,0.62502,137.33,137.32,11.21]
[1728587800540,79.3,137.36,137.32,13.39483]
[1728587800541,0.5,137.36,137.32,13.39483]
[1728587800741,0.5,137.36,137.35,11.21]
[1728587800948,0.5,137.36,137.35,14.8545]
[1728587801244,0.5,137.36,137.35,17.03933]
[1728587803441,0.62502,137.39,137.35,13.39483]
[1728587803649,0.62502,137.39,137.38,11.21]
[1728587804147,0.62502,137.39,137.38,14.8537]
[1728587804647,0.62502,137.39,137.38,17.03853]
[1728587807141,0.62502,137.39,137.38,2.18483]
[1728587808351,4.26842,137.39,137.38,2.18483]
[1728587809149,0.62502,137.39,137.38,2.18483]
[1728587809857,4.26842,137.39,137.38,2.18483]
[1728587812951,3.6437,137.38,137.35,3.6443]
[1728587813255,6.90502,137.39,137.35,2.18483]
[1728587813553,3.6441,137.37,137.35,2.18483]
[1728587814058,3.6442,137.36,137.35,2.18483]
[1728587816955,6.90502,137.39,137.35,2.18483]
[1728587817759,3.6437,137.38,137.35,2.18483]
[1728587818577,3.6437,137.38,137.35,5.82913]
[1728587820051,3.644,137.37,137.35,2.18483]
[1728587822158,6.90502,137.39,137.35,2.18483]
[1728587823058,10.54862,137.39,137.36,3.644]
[1728587823359,6.26,137.38,137.36,5.82883]
[1728587828464,6.26,137.38,137.36,17.02883]
[1728587828863,6.26,137.38,137.37,14.8439]
[1728587829071,0.62502,137.39,137.37,11.2]
[1728587829267,0.62502,137.39,137.38,11.2]
[1728587829465,0.62502,137.39,137.38,14.8437]
[1728587829865,0.62502,137.39,137.38,17.02853]
[1728587832769,0.62502,137.39,137.38,13.38483]
[1728587832972,4.26842,137.39,137.38,2.18483]
[1728587833476,10.52842,137.39,137.38,2.18483]
[1728587833983,21.72842,137.39,137.38,2.18483]
[1728587834178,3.6443,137.36,137.33,16.2036]
[1728587834472,1.45947,137.36,137.33,16.2036]
[1728587834779,11.2,137.38,137.33,18.38724]
[1728587834972,3.6443,137.36,137.33,18.38724]
[1728587835472,3.6441,137.37,137.33,14.74234]
[1728587835673,18.08502,137.39,137.33,14.74234]
[1728587836075,3.6441,137.37,137.33,18.38714]
[1728587837387,11.2,137.35,137.33,2.18364]
[1728587837568,6.26,137.34,137.33,2.18364]
[1728587838068,14.88442701,137.36,137.33,2.18364]
[1728587838269,6.26,137.35,137.33,13.38364]
[1728587839289,6.26,137.35,137.34,3.6447]
[1728587839784,6.26,137.35,137.34,5.82834]
[1728587840485,6.26,137.36,137.34,5.82834]
[1728587840684,6.26,137.36,137.34,2.18364]
[1728587841884,3.6445,137.35,137.34,2.18364]
[1728587842387,6.26,137.36,137.34,2.18364]
[1728587842585,17.46,137.36,137.34,2.18364]
[1728587842973,21.1044,137.36,137.34,5.82834]
[1728587843180,6.26,137.36,137.34,13.38364]
[1728587843486,6.26,137.36,137.35,3.6445]
[1728587843786,6.26,137.37,137.35,3.6445]
[1728587844181,6.26,137.37,137.35,5.82814]
[1728587845087,3.6438,137.38,137.35,5.82814]